[Event "*** SCC Grand Prix: Titled Tuesday Blitz"]
[Site "Chess.com"]
[Date "2020.06.02"]
[Round "4"]
[White "silverback96"]
[Black "Escanor89"]
[Result "0-1"]
[WhiteElo "2233"]
[BlackElo "2571"]
[TimeControl "180+1"]
[EndTime "10:40:21 PDT"]
[Termination "Escanor89 won on time"]

1. d4 {[%clk 0:03:00.9]} 1... Nf6 {[%clk 0:02:35.9]} 2. c4 {[%clk 0:02:58.6]}
2... g6 {[%clk 0:02:34.6]} 3. g3 {[%clk 0:02:58.6]} 3... Bg7 {[%clk 0:02:33.7]}
4. Bg2 {[%clk 0:02:59]} 4... O-O {[%clk 0:02:33.8]} 5. Nc3 {[%clk 0:02:58.9]}
5... d6 {[%clk 0:02:33.8]} 6. Nf3 {[%clk 0:02:59.6]} 6... Nc6 {[%clk 0:02:33]}
7. O-O {[%clk 0:03:00.1]} 7... e5 {[%clk 0:02:32.2]} 8. dxe5 {[%clk 0:03:01]}
8... dxe5 {[%clk 0:02:31.7]} 9. Bg5 {[%clk 0:03:01.7]} 9... Be6 {[%clk
0:02:30.5]} 10. Nd2 {[%clk 0:02:57.4]} 10... Qc8 {[%clk 0:02:06.5]} 11. Nd5
{[%clk 0:02:46.8]} 11... Nd7 {[%clk 0:02:01.1]} 12. Qa4 {[%clk 0:02:03.5]} 12...
Re8 {[%clk 0:01:58.8]} 13. Ne4 {[%clk 0:01:55.2]} 13... Nb6 {[%clk 0:01:38]} 14.
Nxb6 {[%clk 0:00:52.2]} 14... axb6 {[%clk 0:01:35.9]} 15. Qd1 {[%clk 0:00:53.1]}
15... Kh8 {[%clk 0:01:25]} 16. b3 {[%clk 0:00:48.7]} 16... f5 {[%clk 0:01:18.8]}
17. Nf6 {[%clk 0:00:45.6]} 17... Rf8 {[%clk 0:01:10.6]} 18. Nd5 {[%clk
0:00:42.2]} 18... Qd7 {[%clk 0:01:05.2]} 19. Qc1 {[%clk 0:00:35.5]} 19... Nd4
{[%clk 0:00:58.4]} 20. Qd2 {[%clk 0:00:23.5]} 20... e4 {[%clk 0:00:35.6]} 21. e3
{[%clk 0:00:22.8]} 21... Nf3+ {[%clk 0:00:33.9]} 22. Bxf3 {[%clk 0:00:23.1]}
22... exf3 {[%clk 0:00:32.8]} 23. Rfd1 {[%clk 0:00:20.5]} 23... c6 {[%clk
0:00:29.7]} 24. Nf4 {[%clk 0:00:16.8]} 24... Qxd2 {[%clk 0:00:27.7]} 25. Rxd2
{[%clk 0:00:17.7]} 25... Bxa1 {[%clk 0:00:26]} 26. Nxe6 {[%clk 0:00:18.3]} 26...
Rfe8 {[%clk 0:00:26.1]} 27. Nc7 {[%clk 0:00:18]} 27... Bc3 {[%clk 0:00:24]} 28.
Rd1 {[%clk 0:00:12.3]} 28... Rec8 {[%clk 0:00:19.4]} 29. Nxa8 {[%clk 0:00:12.4]}
29... Rxa8 {[%clk 0:00:19.5]} 30. a3 {[%clk 0:00:09.4]} 30... Rxa3 {[%clk
0:00:18.1]} 31. Rb1 {[%clk 0:00:07.8]} 31... Ra1 {[%clk 0:00:16.4]} 32. Rxa1
{[%clk 0:00:07.3]} 32... Bxa1 {[%clk 0:00:16.6]} 33. h3 {[%clk 0:00:05.1]} 33...
h5 {[%clk 0:00:14.8]} 34. Kf1 {[%clk 0:00:04]} 34... Kg8 {[%clk 0:00:15]} 35.
Ke1 {[%clk 0:00:04.5]} 35... Kf7 {[%clk 0:00:14.7]} 36. Kd2 {[%clk 0:00:04.9]}
36... Ke6 {[%clk 0:00:13.2]} 37. Kd3 {[%clk 0:00:05.1]} 37... Be5 {[%clk
0:00:12.4]} 38. e4 {[%clk 0:00:03.5]} 38... b5 {[%clk 0:00:10.6]} 39. Ke3 {[%clk
0:00:03.3]} 39... fxe4 {[%clk 0:00:09.2]} 40. Kxe4 {[%clk 0:00:02]} 40... bxc4
{[%clk 0:00:09.8]} 41. bxc4 {[%clk 0:00:01.2]} 41... b5 {[%clk 0:00:10]} 42.
cxb5 {[%clk 0:00:02.1]} 42... cxb5 {[%clk 0:00:10.1]} 43. Kxf3 {[%clk
0:00:02.8]} 43... b4 {[%clk 0:00:10.4]} 44. Ke2 {[%clk 0:00:01.9]} 44... b3
{[%clk 0:00:10.6]} 45. Kd3 {[%clk 0:00:02.1]} 45... Kd5 {[%clk 0:00:08.9]} 0-1

[Event "*** SCC Grand Prix: Titled Tuesday Blitz"]
[Site "Chess.com"]
[Date "2020.06.02"]
[Round "4"]
[White "CrushingKings"]
[Black "12teen"]
[Result "1-0"]
[WhiteElo "2511"]
[BlackElo "2687"]
[TimeControl "180+1"]
[EndTime "10:40:22 PDT"]
[Termination "CrushingKings won by resignation"]

1. e4 {[%clk 0:03:00.9]} 1... b6 {[%clk 0:02:59.8]} 2. d4 {[%clk 0:03:00.6]}
2... Bb7 {[%clk 0:03:00.4]} 3. Bd3 {[%clk 0:03:01.2]} 3... e6 {[%clk 0:03:01.1]}
4. Qe2 {[%clk 0:03:01.4]} 4... Nf6 {[%clk 0:03:01.7]} 5. Nd2 {[%clk 0:03:01.5]}
5... d5 {[%clk 0:03:02.4]} 6. c3 {[%clk 0:03:01.5]} 6... c5 {[%clk 0:03:02.5]}
7. dxc5 {[%clk 0:02:59]} 7... Bxc5 {[%clk 0:03:03.4]} 8. Ngf3 {[%clk 0:02:58.7]}
8... Nc6 {[%clk 0:03:03.6]} 9. O-O {[%clk 0:02:58.7]} 9... O-O {[%clk
0:02:58.3]} 10. h3 {[%clk 0:02:58.1]} 10... Qc7 {[%clk 0:02:54.4]} 11. Re1
{[%clk 0:02:52.2]} 11... h6 {[%clk 0:02:38.7]} 12. e5 {[%clk 0:02:46.8]} 12...
Nd7 {[%clk 0:02:39]} 13. Nb3 {[%clk 0:02:47.5]} 13... Rae8 {[%clk 0:02:31.2]}
14. Bf4 {[%clk 0:02:46.8]} 14... f6 {[%clk 0:02:22.5]} 15. Bg6 {[%clk
0:02:31.8]} 15... Rd8 {[%clk 0:02:03.2]} 16. Bg3 {[%clk 0:02:03.9]} 16... fxe5
{[%clk 0:01:58.2]} 17. Nxc5 {[%clk 0:02:02.7]} 17... bxc5 {[%clk 0:01:56.6]} 18.
Nxe5 {[%clk 0:02:00.6]} 18... Ndxe5 {[%clk 0:01:55.6]} 19. Bxe5 {[%clk
0:02:00.4]} 19... Nxe5 {[%clk 0:01:54.9]} 20. Qxe5 {[%clk 0:02:01.3]} 20... Qxe5
{[%clk 0:01:54.4]} 21. Rxe5 {[%clk 0:02:02.2]} 21... Rf6 {[%clk 0:01:55.1]} 22.
Bc2 {[%clk 0:01:53.9]} 22... d4 {[%clk 0:01:49]} 23. Rd1 {[%clk 0:01:54.1]}
23... Kf7 {[%clk 0:01:42.8]} 24. Rxc5 {[%clk 0:01:52.1]} 24... Rd7 {[%clk
0:00:58.5]} 25. Rxd4 {[%clk 0:01:31]} 25... Re7 {[%clk 0:00:59]} 26. Re5 {[%clk
0:01:10.2]} 26... g5 {[%clk 0:00:53.7]} 27. Bb3 {[%clk 0:01:00.9]} 27... Bc6
{[%clk 0:00:43.4]} 28. Rd6 {[%clk 0:00:59.4]} 28... Bd7 {[%clk 0:00:43.9]} 29.
c4 {[%clk 0:00:52]} 29... Rf4 {[%clk 0:00:41.5]} 30. c5 {[%clk 0:00:51.4]} 30...
Kf6 {[%clk 0:00:42.2]} 31. Re1 {[%clk 0:00:48.3]} 31... Bc8 {[%clk 0:00:42.6]}
32. c6 {[%clk 0:00:41.9]} 32... Rf5 {[%clk 0:00:40.4]} 33. Rc1 {[%clk
0:00:33.8]} 33... Rc7 {[%clk 0:00:39.9]} 34. Bd1 {[%clk 0:00:28.8]} 34... Ke7
{[%clk 0:00:36.2]} 35. Rd3 {[%clk 0:00:26.7]} 35... Ba6 {[%clk 0:00:34.6]} 36.
Rdc3 {[%clk 0:00:25.3]} 36... Re5 {[%clk 0:00:33.8]} 37. Bf3 {[%clk 0:00:24.6]}
37... Rb5 {[%clk 0:00:30]} 38. b3 {[%clk 0:00:24.5]} 38... Re5 {[%clk
0:00:26.1]} 39. a4 {[%clk 0:00:24.5]} 39... Rf5 {[%clk 0:00:21.5]} 40. b4 {[%clk
0:00:24]} 40... Rf4 {[%clk 0:00:22.1]} 41. b5 {[%clk 0:00:24.1]} 41... Bc8
{[%clk 0:00:22.5]} 42. Rc4 {[%clk 0:00:24.2]} 42... Rf5 {[%clk 0:00:21.4]} 43.
Rc5 {[%clk 0:00:23.7]} 43... Rf4 {[%clk 0:00:21.5]} 44. R1c4 {[%clk 0:00:24.3]}
44... Kd6 {[%clk 0:00:17.2]} 45. Rxf4 {[%clk 0:00:24.2]} 45... gxf4 {[%clk
0:00:18.1]} 46. Rh5 {[%clk 0:00:23.9]} 46... Rh7 {[%clk 0:00:17.2]} 47. a5
{[%clk 0:00:22]} 47... Kc7 {[%clk 0:00:16.4]} 48. Be4 {[%clk 0:00:21.2]} 48...
Rh8 {[%clk 0:00:16.3]} 49. Kf1 {[%clk 0:00:19.1]} 49... Kd6 {[%clk 0:00:14.6]}
50. Ke2 {[%clk 0:00:19.4]} 50... Kc7 {[%clk 0:00:14.1]} 51. Kf3 {[%clk
0:00:19.7]} 51... Rd8 {[%clk 0:00:05.5]} 52. Rxh6 {[%clk 0:00:19]} 52... Rd4
{[%clk 0:00:06.2]} 53. Rh7+ {[%clk 0:00:18.1]} 53... Kd6 {[%clk 0:00:06.6]} 54.
b6 {[%clk 0:00:18.7]} 54... axb6 {[%clk 0:00:06.4]} 55. axb6 {[%clk 0:00:19.6]}
55... e5 {[%clk 0:00:05.2]} 56. b7 {[%clk 0:00:19]} 56... Bxb7 {[%clk
0:00:05.4]} 57. cxb7 {[%clk 0:00:18.8]} 57... Rb4 {[%clk 0:00:05.8]} 58. Rh8
{[%clk 0:00:19.2]} 58... Rb3+ {[%clk 0:00:05.8]} 59. Kg4 {[%clk 0:00:19.3]}
59... Kc7 {[%clk 0:00:04.3]} 60. Rc8+ {[%clk 0:00:18.9]} 1-0

[Event "*** SCC Grand Prix: Titled Tuesday Blitz"]
[Site "Chess.com"]
[Date "2020.06.02"]
[Round "4"]
[White "aleksandrovaleksei"]
[Black "MIJUAREZ"]
[Result "0-1"]
[WhiteElo "2550"]
[BlackElo "2353"]
[TimeControl "180+1"]
[EndTime "10:40:23 PDT"]
[Termination "MIJUAREZ won on time"]

1. d4 {[%clk 0:03:00.9]} 1... d5 {[%clk 0:02:58.8]} 2. c4 {[%clk 0:03:00.3]}
2... c6 {[%clk 0:02:58.1]} 3. Nc3 {[%clk 0:02:59.6]} 3... Nf6 {[%clk 0:02:57.8]}
4. e3 {[%clk 0:02:59.8]} 4... g6 {[%clk 0:02:52.1]} 5. Nf3 {[%clk 0:02:59]} 5...
Bg7 {[%clk 0:02:52.1]} 6. Be2 {[%clk 0:02:58]} 6... O-O {[%clk 0:02:52.5]} 7.
O-O {[%clk 0:02:58.1]} 7... b6 {[%clk 0:02:38]} 8. a4 {[%clk 0:02:52.7]} 8...
Na6 {[%clk 0:02:33.7]} 9. Ne5 {[%clk 0:02:50.3]} 9... Nb4 {[%clk 0:02:32.5]} 10.
Na2 {[%clk 0:02:49]} 10... Nxa2 {[%clk 0:02:26.8]} 11. Rxa2 {[%clk 0:02:47.4]}
11... Bb7 {[%clk 0:02:25.8]} 12. b4 {[%clk 0:02:45.3]} 12... Nd7 {[%clk
0:02:22.5]} 13. Nf3 {[%clk 0:02:42.7]} 13... c5 {[%clk 0:02:08.4]} 14. dxc5
{[%clk 0:02:31.1]} 14... bxc5 {[%clk 0:02:07.3]} 15. b5 {[%clk 0:02:29.3]} 15...
Nb6 {[%clk 0:02:02.7]} 16. Rd2 {[%clk 0:02:12.8]} 16... Bc3 {[%clk 0:01:37.7]}
17. Rd3 {[%clk 0:02:06.4]} 17... Bg7 {[%clk 0:01:13.9]} 18. a5 {[%clk
0:02:02.6]} 18... Nxc4 {[%clk 0:01:12.5]} 19. a6 {[%clk 0:02:02.2]} 19... Bc8
{[%clk 0:01:02.7]} 20. Rxd5 {[%clk 0:02:01.3]} 20... Nd6 {[%clk 0:01:03.4]} 21.
Rxc5 {[%clk 0:01:52.6]} 21... Bd7 {[%clk 0:01:03.8]} 22. Ba3 {[%clk 0:01:08.8]}
22... Qb6 {[%clk 0:01:02.1]} 23. Qb3 {[%clk 0:01:02.7]} 23... Rab8 {[%clk
0:00:53.2]} 24. Rb1 {[%clk 0:01:00.2]} 24... Rfd8 {[%clk 0:00:50.2]} 25. h3
{[%clk 0:00:56.1]} 25... Be6 {[%clk 0:00:49.9]} 26. Qa4 {[%clk 0:00:53.1]} 26...
Bf6 {[%clk 0:00:44.3]} 27. Nd4 {[%clk 0:00:39.4]} 27... Bxd4 {[%clk 0:00:39]}
28. exd4 {[%clk 0:00:39]} 28... Bd7 {[%clk 0:00:38.3]} 29. d5 {[%clk 0:00:33.1]}
29... Rdc8 {[%clk 0:00:34.7]} 30. Rxc8+ {[%clk 0:00:30.9]} 30... Rxc8 {[%clk
0:00:33.4]} 31. Qh4 {[%clk 0:00:28.2]} 31... Nf5 {[%clk 0:00:30.3]} 32. Qf4
{[%clk 0:00:24.8]} 32... Rc2 {[%clk 0:00:29.1]} 33. Bd3 {[%clk 0:00:21.8]} 33...
Rc3 {[%clk 0:00:28.2]} 34. Bxf5 {[%clk 0:00:20.7]} 34... Bxf5 {[%clk 0:00:28.2]}
35. Ra1 {[%clk 0:00:17.3]} 35... Qxb5 {[%clk 0:00:25.6]} 36. Bxe7 {[%clk
0:00:16.4]} 36... Qxd5 {[%clk 0:00:23.7]} 37. Qb8+ {[%clk 0:00:15.6]} 37... Rc8
{[%clk 0:00:23.4]} 38. Qxa7 {[%clk 0:00:15.6]} 38... Qe5 {[%clk 0:00:24]} 39.
Rf1 {[%clk 0:00:13.5]} 39... Be4 {[%clk 0:00:23.9]} 40. Bh4 {[%clk 0:00:11.8]}
40... Ra8 {[%clk 0:00:17.5]} 41. Qb6 {[%clk 0:00:10.9]} 41... Bd3 {[%clk
0:00:09.3]} 42. Bf6 {[%clk 0:00:09.3]} 42... Qe6 {[%clk 0:00:06.7]} 43. Qxe6
{[%clk 0:00:05.9]} 43... fxe6 {[%clk 0:00:06.5]} 44. Rc1 {[%clk 0:00:06]} 44...
Rxa6 {[%clk 0:00:03.8]} 45. Rc7 {[%clk 0:00:05.6]} 45... h5 {[%clk 0:00:04.1]}
46. Kh2 {[%clk 0:00:03.1]} 46... Bf5 {[%clk 0:00:03.6]} 47. Kg3 {[%clk
0:00:01.9]} 47... Ra2 {[%clk 0:00:03.9]} 48. f3 {[%clk 0:00:01.3]} 48... Rc2
{[%clk 0:00:02.2]} 0-1

[Event "*** SCC Grand Prix: Titled Tuesday Blitz"]
[Site "Chess.com"]
[Date "2020.06.02"]
[Round "4"]
[White "SHIVACalypso"]
[Black "JSMastropiero"]
[Result "1-0"]
[WhiteElo "2303"]
[BlackElo "2431"]
[TimeControl "180+1"]
[EndTime "10:40:24 PDT"]
[Termination "SHIVACalypso won by resignation"]

1. Nf3 {[%clk 0:03:00.9]} 1... Nf6 {[%clk 0:02:57.9]} 2. c4 {[%clk 0:03:00.3]}
2... e6 {[%clk 0:02:55.6]} 3. g3 {[%clk 0:03:00.4]} 3... d5 {[%clk 0:02:53.6]}
4. Bg2 {[%clk 0:03:00.6]} 4... Be7 {[%clk 0:02:52.5]} 5. O-O {[%clk 0:03:01]}
5... O-O {[%clk 0:02:52.9]} 6. d4 {[%clk 0:03:00.3]} 6... dxc4 {[%clk 0:02:52]}
7. Qc2 {[%clk 0:02:59.2]} 7... a6 {[%clk 0:02:51.4]} 8. a4 {[%clk 0:02:58.4]}
8... Bd7 {[%clk 0:02:44.2]} 9. Ne5 {[%clk 0:02:57.1]} 9... Nc6 {[%clk
0:02:43.6]} 10. Rd1 {[%clk 0:02:40.3]} 10... Na5 {[%clk 0:02:14.9]} 11. Nd2
{[%clk 0:02:25.5]} 11... Nd5 {[%clk 0:01:31.8]} 12. Ndxc4 {[%clk 0:02:20.7]}
12... Nxc4 {[%clk 0:01:21.9]} 13. Qxc4 {[%clk 0:02:10.6]} 13... b5 {[%clk
0:01:20.8]} 14. Qc2 {[%clk 0:02:02.6]} 14... Rb8 {[%clk 0:01:14.4]} 15. Nc6
{[%clk 0:01:42]} 15... Bxc6 {[%clk 0:01:13.2]} 16. Qxc6 {[%clk 0:01:42.9]} 16...
Rb6 {[%clk 0:01:12.5]} 17. Qc2 {[%clk 0:01:40.9]} 17... Qd7 {[%clk 0:01:06.1]}
18. e4 {[%clk 0:01:30.5]} 18... Nb4 {[%clk 0:00:54.3]} 19. Qb3 {[%clk
0:01:17.8]} 19... Rd8 {[%clk 0:00:49.5]} 20. Be3 {[%clk 0:01:17.4]} 20... Rbb8
{[%clk 0:00:42.5]} 21. axb5 {[%clk 0:01:09.3]} 21... axb5 {[%clk 0:00:40.3]} 22.
Rac1 {[%clk 0:00:51.6]} 22... h6 {[%clk 0:00:39.5]} 23. Bf4 {[%clk 0:00:47.5]}
23... Rbc8 {[%clk 0:00:38.6]} 24. Bf1 {[%clk 0:00:39]} 24... c6 {[%clk
0:00:37.4]} 25. Be3 {[%clk 0:00:32.5]} 25... Na6 {[%clk 0:00:35.9]} 26. d5
{[%clk 0:00:26.3]} 26... cxd5 {[%clk 0:00:30.8]} 27. exd5 {[%clk 0:00:23]} 27...
Rxc1 {[%clk 0:00:28.6]} 28. Bxc1 {[%clk 0:00:17.3]} 28... Nc5 {[%clk 0:00:24.7]}
29. Qxb5 {[%clk 0:00:17]} 29... Qxb5 {[%clk 0:00:24.6]} 30. Bxb5 {[%clk
0:00:17.3]} 30... Rxd5 {[%clk 0:00:25.3]} 31. Rxd5 {[%clk 0:00:14]} 31... exd5
{[%clk 0:00:26.2]} 32. Be3 {[%clk 0:00:12.3]} 32... Ne6 {[%clk 0:00:20.6]} 33.
Kf1 {[%clk 0:00:10.1]} 33... d4 {[%clk 0:00:20]} 34. Bd2 {[%clk 0:00:10.3]}
34... Kf8 {[%clk 0:00:12.8]} 35. Ke2 {[%clk 0:00:09.6]} 35... Nc7 {[%clk
0:00:12.9]} 36. Bc4 {[%clk 0:00:09]} 36... Bf6 {[%clk 0:00:10.5]} 37. Kd3 {[%clk
0:00:09.2]} 37... Ke7 {[%clk 0:00:11]} 38. Bb4+ {[%clk 0:00:08.8]} 38... Ke8
{[%clk 0:00:09.7]} 39. Bc5 {[%clk 0:00:08.7]} 39... Ne6 {[%clk 0:00:08.5]} 40.
Bxe6 {[%clk 0:00:08.2]} 40... fxe6 {[%clk 0:00:09.4]} 41. Bxd4 {[%clk
0:00:08.6]} 41... e5 {[%clk 0:00:10]} 42. Bc5 {[%clk 0:00:07.8]} 42... Kd7
{[%clk 0:00:10.5]} 43. b4 {[%clk 0:00:07.7]} 43... Kc6 {[%clk 0:00:10.5]} 44.
Kc4 {[%clk 0:00:07.8]} 44... Bd8 {[%clk 0:00:08]} 45. b5+ {[%clk 0:00:07.7]}
45... Kd7 {[%clk 0:00:08.9]} 46. Kd5 {[%clk 0:00:07.1]} 46... Bf6 {[%clk
0:00:04.3]} 47. b6 {[%clk 0:00:06.8]} 47... e4 {[%clk 0:00:04.8]} 48. Bd4 {[%clk
0:00:05.8]} 48... Bd8 {[%clk 0:00:04]} 49. Kxe4 {[%clk 0:00:05.5]} 49... Bc7
{[%clk 0:00:04.9]} 50. Kf5 {[%clk 0:00:05.5]} 50... Bd6 {[%clk 0:00:04.5]} 51.
Kg6 {[%clk 0:00:05.2]} 1-0

[Event "*** SCC Grand Prix: Titled Tuesday Blitz"]
[Site "Chess.com"]
[Date "2020.06.02"]
[Round "4"]
[White "mr65"]
[Black "Aguiar94"]
[Result "0-1"]
[WhiteElo "2148"]
[BlackElo "2411"]
[TimeControl "180+1"]
[EndTime "10:40:24 PDT"]
[Termination "Aguiar94 won on time"]

1. e4 {[%clk 0:03:00.5]} 1... c5 {[%clk 0:02:59]} 2. d4 {[%clk 0:02:59.7]} 2...
cxd4 {[%clk 0:02:58.7]} 3. c3 {[%clk 0:02:59.8]} 3... d3 {[%clk 0:02:58.4]} 4.
c4 {[%clk 0:02:58.9]} 4... Nf6 {[%clk 0:02:55.9]} 5. Nc3 {[%clk 0:02:58.6]} 5...
d6 {[%clk 0:02:45.3]} 6. Bxd3 {[%clk 0:02:58.1]} 6... e6 {[%clk 0:02:43.8]} 7.
Nge2 {[%clk 0:02:57.2]} 7... Be7 {[%clk 0:02:43.5]} 8. O-O {[%clk 0:02:56.5]}
8... O-O {[%clk 0:02:43.8]} 9. b3 {[%clk 0:02:56.5]} 9... a6 {[%clk 0:02:42.8]}
10. Bb2 {[%clk 0:02:56.2]} 10... b6 {[%clk 0:02:42.6]} 11. Rc1 {[%clk
0:02:52.7]} 11... Bb7 {[%clk 0:02:42.1]} 12. Bb1 {[%clk 0:02:48]} 12... Nbd7
{[%clk 0:02:41.6]} 13. Qc2 {[%clk 0:02:38.3]} 13... Qc7 {[%clk 0:02:39.4]} 14.
Kh1 {[%clk 0:02:31.7]} 14... Rac8 {[%clk 0:02:39.4]} 15. f4 {[%clk 0:02:28]}
15... Qb8 {[%clk 0:02:39.2]} 16. Ng3 {[%clk 0:02:16.4]} 16... g6 {[%clk
0:02:26.1]} 17. f5 {[%clk 0:02:08.3]} 17... b5 {[%clk 0:02:13.8]} 18. fxe6
{[%clk 0:02:05.2]} 18... fxe6 {[%clk 0:02:13.3]} 19. cxb5 {[%clk 0:01:59]} 19...
axb5 {[%clk 0:02:10]} 20. Qd2 {[%clk 0:01:58.3]} 20... b4 {[%clk 0:02:07.2]} 21.
Na4 {[%clk 0:01:54.8]} 21... Rxc1 {[%clk 0:01:59.3]} 22. Rxc1 {[%clk 0:01:54.2]}
22... Ng4 {[%clk 0:01:48.6]} 23. h3 {[%clk 0:01:43.5]} 23... d5 {[%clk
0:01:30.8]} 24. e5 {[%clk 0:01:26.3]} 24... Ngxe5 {[%clk 0:00:52.9]} 25. Qd4
{[%clk 0:01:16.5]} 25... Bg5 {[%clk 0:00:40.1]} 26. Rf1 {[%clk 0:01:10]} 26...
Rxf1+ {[%clk 0:00:36.7]} 27. Nxf1 {[%clk 0:01:09.1]} 27... Bc6 {[%clk
0:00:36.6]} 28. Nc5 {[%clk 0:01:01.3]} 28... Bf6 {[%clk 0:00:28.1]} 29. Qf4
{[%clk 0:00:52.1]} 29... Qf8 {[%clk 0:00:16.4]} 30. Nxd7 {[%clk 0:00:44.3]}
30... Nxd7 {[%clk 0:00:16.1]} 31. Bxf6 {[%clk 0:00:39.7]} 31... Qxf6 {[%clk
0:00:17]} 32. Qc1 {[%clk 0:00:35.9]} 32... Qc3 {[%clk 0:00:16.7]} 33. Qxc3
{[%clk 0:00:33.2]} 33... bxc3 {[%clk 0:00:17.6]} 34. Ne3 {[%clk 0:00:24]} 34...
d4 {[%clk 0:00:17.3]} 35. Nc4 {[%clk 0:00:23.8]} 35... e5 {[%clk 0:00:17.7]} 36.
Kg1 {[%clk 0:00:22.4]} 36... e4 {[%clk 0:00:17.9]} 37. Kf2 {[%clk 0:00:19.6]}
37... d3 {[%clk 0:00:18.4]} 38. Ke3 {[%clk 0:00:17]} 38... c2 {[%clk 0:00:17.9]}
39. Bxc2 {[%clk 0:00:14.6]} 39... dxc2 {[%clk 0:00:18.8]} 40. Kd2 {[%clk
0:00:14.4]} 40... Kf7 {[%clk 0:00:19.4]} 41. Kxc2 {[%clk 0:00:14]} 41... Ke6
{[%clk 0:00:19.9]} 42. a4 {[%clk 0:00:12.4]} 42... Bd5 {[%clk 0:00:20.8]} 43.
Ne3 {[%clk 0:00:09.5]} 43... Nc5 {[%clk 0:00:20.7]} 44. Nxd5 {[%clk 0:00:04.2]}
44... Kxd5 {[%clk 0:00:21.6]} 45. a5 {[%clk 0:00:03.8]} 45... Na6 {[%clk
0:00:20.1]} 46. Kc3 {[%clk 0:00:02.5]} 46... Kc5 {[%clk 0:00:20.6]} 0-1

[Event "*** SCC Grand Prix: Titled Tuesday Blitz"]
[Site "Chess.com"]
[Date "2020.06.02"]
[Round "4"]
[White "DDTerziev04"]
[Black "Happy1712Drummer"]
[Result "0-1"]
[WhiteElo "2243"]
[BlackElo "2440"]
[TimeControl "180+1"]
[EndTime "10:40:25 PDT"]
[Termination "Happy1712Drummer won by resignation"]

1. e4 {[%clk 0:03:00.9]} 1... c6 {[%clk 0:02:56]} 2. d4 {[%clk 0:02:57.5]} 2...
d5 {[%clk 0:02:56.9]} 3. exd5 {[%clk 0:02:58.4]} 3... cxd5 {[%clk 0:02:56.6]} 4.
Bd3 {[%clk 0:02:58.3]} 4... Nf6 {[%clk 0:02:55.5]} 5. c3 {[%clk 0:02:56.3]} 5...
Nc6 {[%clk 0:02:55.7]} 6. Bf4 {[%clk 0:02:55.6]} 6... g6 {[%clk 0:02:54.4]} 7.
Nd2 {[%clk 0:02:55.1]} 7... Bg7 {[%clk 0:02:54.9]} 8. Ngf3 {[%clk 0:02:53.8]}
8... O-O {[%clk 0:02:54.5]} 9. h3 {[%clk 0:02:53.4]} 9... Bf5 {[%clk 0:02:54.1]}
10. Bxf5 {[%clk 0:02:52.7]} 10... gxf5 {[%clk 0:02:55]} 11. g4 {[%clk
0:02:53.6]} 11... Qc8 {[%clk 0:02:34.8]} 12. Rg1 {[%clk 0:02:51.2]} 12... Kh8
{[%clk 0:02:11.4]} 13. Ne5 {[%clk 0:02:38.8]} 13... Ne4 {[%clk 0:01:52.5]} 14.
f3 {[%clk 0:02:26.1]} 14... Nxd2 {[%clk 0:01:46.8]} 15. Qxd2 {[%clk 0:02:27]}
15... Nxe5 {[%clk 0:01:36.7]} 16. dxe5 {[%clk 0:02:16.2]} 16... Qe6 {[%clk
0:01:29.5]} 17. O-O-O {[%clk 0:01:59.9]} 17... Rad8 {[%clk 0:01:21]} 18. gxf5
{[%clk 0:01:53.4]} 18... Qxf5 {[%clk 0:01:12]} 19. Rg5 {[%clk 0:01:22.5]} 19...
Qxh3 {[%clk 0:00:44.7]} 20. Rg3 {[%clk 0:00:44.1]} 20... Qf5 {[%clk 0:00:38.7]}
21. Rh1 {[%clk 0:00:30.4]} 21... d4 {[%clk 0:00:13.9]} 22. Rgh3 {[%clk
0:00:17.1]} 22... dxc3 {[%clk 0:00:13.2]} 23. Rxh7+ {[%clk 0:00:13.8]} 23...
Qxh7 {[%clk 0:00:13.8]} 24. Rxh7+ {[%clk 0:00:14.5]} 24... Kxh7 {[%clk
0:00:14.3]} 25. Qh2+ {[%clk 0:00:14.3]} 25... Kg8 {[%clk 0:00:11]} 26. bxc3
{[%clk 0:00:14.3]} 26... Rc8 {[%clk 0:00:10.1]} 27. Qg3 {[%clk 0:00:09.6]} 27...
Rxc3+ {[%clk 0:00:09.2]} 28. Kb1 {[%clk 0:00:07.5]} 28... Rc6 {[%clk 0:00:10.1]}
29. Be3 {[%clk 0:00:03]} 29... Rg6 {[%clk 0:00:08.4]} 30. Qf2 {[%clk 0:00:02.7]}
30... b6 {[%clk 0:00:09.3]} 31. f4 {[%clk 0:00:02.7]} 31... e6 {[%clk
0:00:08.4]} 32. Bd4 {[%clk 0:00:02.1]} 32... Rd8 {[%clk 0:00:08.1]} 33. Be3
{[%clk 0:00:02.6]} 33... Rd5 {[%clk 0:00:07.9]} 34. Kc2 {[%clk 0:00:02.7]} 34...
Ra5 {[%clk 0:00:06.6]} 35. Kb2 {[%clk 0:00:03]} 35... Rd5 {[%clk 0:00:06.9]} 36.
Qf3 {[%clk 0:00:03]} 36... Bf8 {[%clk 0:00:07]} 37. Qf2 {[%clk 0:00:03.1]} 37...
Rb5+ {[%clk 0:00:06.8]} 38. Ka1 {[%clk 0:00:02.8]} 38... Bb4 {[%clk 0:00:06.4]}
39. Bd4 {[%clk 0:00:03]} 39... Bc5 {[%clk 0:00:05.2]} 40. Bxc5 {[%clk
0:00:02.4]} 40... Rxc5 {[%clk 0:00:06.1]} 41. Qd2 {[%clk 0:00:01.6]} 41... Rg1+
{[%clk 0:00:04.9]} 42. Kb2 {[%clk 0:00:02.1]} 42... Rb5+ {[%clk 0:00:04.2]} 43.
Kc3 {[%clk 0:00:02.3]} 43... Rc5+ {[%clk 0:00:04.1]} 44. Kb2 {[%clk 0:00:01.7]}
44... Rd5 {[%clk 0:00:04.2]} 45. Kc2 {[%clk 0:00:01.9]} 45... Rxd2+ {[%clk
0:00:03.1]} 46. Kxd2 {[%clk 0:00:02.3]} 46... Rg2+ {[%clk 0:00:03.7]} 0-1